[Event "ONJK DE"]
[Site "Enschede, Netherlands"]
[Date "2022.08.13"]
[Round "12.6"]
[White "Katpatal, Akshaj (E)"]
[Black "Meert, Senne (E)"]
[Result "1-0"]
[TimeControl "40min + 30sec/move"]
[WhiteElo "1874"]
[BlackElo "100"]

1. e4 {[%clk 00:40:58]} {[%emt 00:00:01]} e6 {[%clk 00:40:45]} {[%emt
00:00:13]} 2. d4 {[%clk 00:41:26]} {[%emt 00:00:04]} d5 {[%clk 00:41:00]}
{[%emt 00:00:12]} 3. Nc3 {[%clk 00:41:53]} {[%emt 00:00:07]} c5 {[%clk
00:41:07]} {[%emt 00:00:20]} 4. exd5 {[%clk 00:42:19]} {[%emt 00:00:07]} exd5
{[%clk 00:41:17]} {[%emt 00:00:19]} 5. dxc5 {[%clk 00:42:00]} {[%emt 00:00:49]}
Bxc5 {[%clk 00:41:37]} {[%emt 00:00:10]} 6. Qxd5 {[%clk 00:42:23]} {[%emt
00:00:08]} Qe7+ {[%emt 00:01:49]} 7. Qe4 {[%emt 00:00:09]} Be6 {[%clk
00:37:59]} {[%emt 00:01:45]} 8. Bb5+ {[%clk 00:42:45]} {[%emt 00:00:31]} Nd7
{[%clk 00:37:24]} {[%emt 00:01:02]} 9. Be3 {[%clk 00:43:01]} {[%emt 00:00:17]}
Bxe3 {[%clk 00:37:08]} {[%emt 00:00:47]} 10. Qxe3 {[%clk 00:43:25]} {[%emt
00:00:05]} Ngf6 {[%clk 00:37:11]} {[%emt 00:00:24]} 11. Nf3 {[%clk 00:43:37]}
{[%emt 00:00:22]} O-O {[%clk 00:36:54]} {[%emt 00:00:42]} 12. O-O {[%clk
00:44:00]} {[%emt 00:00:11]} Ng4 {[%emt 00:00:21]} 13. Qf4 {[%emt 00:00:08]} a6
{[%clk 00:32:03]} {[%emt 00:04:48]} 14. Bxd7 {[%clk 00:43:42]} {[%emt
00:00:51]} Bxd7 {[%clk 00:31:23]} {[%emt 00:01:12]} 15. Rfe1 {[%clk 00:43:32]}
{[%emt 00:00:40]} Qc5 {[%clk 00:30:26]} {[%emt 00:01:23]} 16. Qg3 {[%clk
00:43:47]} {[%emt 00:00:18]} Rfe8 {[%clk 00:28:38]} {[%emt 00:02:14]} 17. h3
{[%clk 00:43:58]} {[%emt 00:00:23]} Nf6 {[%clk 00:26:31]} {[%emt 00:02:34]} 18.
Rad1 {[%clk 00:44:08]} {[%emt 00:00:22]} Nh5 {[%emt 00:01:51]} 19. Qg5 {[%emt
00:00:11]} Qxg5 {[%clk 00:23:42]} {[%emt 00:01:18]} 20. Nxg5 {[%clk 00:44:30]}
{[%emt 00:00:08]} Bc6 {[%clk 00:22:35]} {[%emt 00:01:34]} 21. Nge4 {[%clk
00:43:17]} {[%emt 00:01:45]} Re6 {[%clk 00:21:56]} {[%emt 00:01:07]} 22. Rd6
{[%clk 00:42:31]} {[%emt 00:01:18]} Rxd6 {[%clk 00:21:40]} {[%emt 00:00:48]} 23.
Nxd6 {[%clk 00:42:56]} {[%emt 00:00:06]} Nf4 {[%clk 00:21:58]} {[%emt
00:00:07]} 24. f3 {[%clk 00:42:54]} {[%emt 00:00:35]} Rd8 {[%clk 00:22:04]}
{[%emt 00:00:20]} 25. Nde4 {[%clk 00:42:42]} {[%emt 00:00:47]} Re8 {[%clk
00:20:26]} {[%emt 00:02:03]} 26. Rd1 {[%clk 00:42:12]} {[%emt 00:01:03]} f5
{[%clk 00:20:18]} {[%emt 00:00:32]} 27. Nc5 {[%clk 00:41:15]} {[%emt 00:01:34]}
Ne2+ {[%clk 00:20:02]} {[%emt 00:00:43]} 28. Kf2 {[%clk 00:40:49]} {[%emt
00:00:59]} Nxc3 {[%clk 00:19:36]} {[%emt 00:00:57]} 29. bxc3 {[%clk 00:41:11]}
{[%emt 00:00:08]} Re5 {[%clk 00:19:11]} {[%emt 00:00:34]} 30. Nd3 {[%clk
00:41:26]} {[%emt 00:00:34]} Rd5 {[%clk 00:18:55]} {[%emt 00:00:43]} 31. Re1
{[%clk 00:40:42]} {[%emt 00:01:19]} g5 {[%clk 00:17:10]} {[%emt 00:02:06]} 32.
Re2 {[%clk 00:41:07]} {[%emt 00:00:12]} Bb5 {[%clk 00:16:46]} {[%emt 00:00:52]}
33. Ke3 {[%clk 00:41:04]} {[%emt 00:00:35]} Rd8 {[%clk 00:15:33]} {[%emt
00:01:41]} 34. Kd2 {[%clk 00:41:20]} {[%emt 00:00:17]} f4 {[%clk 00:15:17]}
{[%emt 00:00:43]} 35. Re5 {[%clk 00:41:46]} {[%emt 00:00:09]} h6 {[%emt
00:00:39]} 36. Re6 {[%emt 00:00:15]} Kg7 {[%clk 00:13:55]} {[%emt 00:00:48]} 37.
Re7+ {[%clk 00:42:13]} {[%emt 00:00:11]} Kf6 {[%clk 00:13:03]} {[%emt
00:01:18]} 38. Rxb7 {[%clk 00:42:36]} {[%emt 00:00:12]} Kf5 {[%clk 00:12:01]}
{[%emt 00:01:12]} 39. Rf7+ {[%clk 00:42:28]} {[%emt 00:00:57]} Kg6 {[%clk
00:11:44]} {[%emt 00:00:47]} 40. Rc7 {[%clk 00:42:49]} {[%emt 00:00:08]} Rd4
{[%clk 00:11:39]} {[%emt 00:00:30]} 41. cxd4 {[%clk 00:42:39]} {[%emt
00:00:47]} Kf6 {[%clk 00:11:22]} {[%emt 00:00:34]} 42. d5 {[%clk 00:43:07]}
{[%emt 00:00:14]} h5 {[%clk 00:10:53]} {[%emt 00:00:58]} 43. c4 {[%clk
00:43:13]} {[%emt 00:00:24]} Be8 {[%clk 00:10:50]} {[%emt 00:00:30]} 44. Ra7
{[%clk 00:43:39]} {[%emt 00:00:09]} h4 {[%clk 00:09:44]} {[%emt 00:01:33]} 45.
c5 {[%clk 00:43:20]} {[%emt 00:00:52]} Bb5 {[%emt 00:00:13]} 46. c6 {[%emt
00:00:06]} Kf5 {[%emt 00:00:37]} 47. c7 {[%emt 00:00:10]} Bd7 {[%clk 00:08:54]}
{[%emt 00:00:07]} 48. Nc5 {[%clk 00:43:48]} {[%emt 00:00:09]} Bc8 {[%clk
00:06:58]} {[%emt 00:01:19]} 49. d6 {[%clk 00:44:16]} {[%emt 00:01:03]} Be6
{[%emt 00:00:18]} 50. Nxe6 {[%emt 00:00:06]} Kxe6 {[%emt 00:00:10]} 51. c8=Q+
{[%clk 00:44:41]} {[%emt 00:00:01]} Kxd6 {[%clk 00:07:49]} {[%emt 00:00:08]} 52.
Rd7+ {[%clk 00:45:05]} {[%emt 00:00:05]} Ke5 {[%emt 00:00:27]} 53. Qe8+ {[%emt
00:00:10]} Kf5 {[%emt 00:00:11]} 54. Rf7+ {[%emt 00:00:06]} Kg6 {[%clk
00:07:17]} {[%emt 00:00:08]} 55. Rxf4+ {[%clk 00:45:30]} {[%emt 00:00:04]} Kg7
{[%clk 00:07:18]} {[%emt 00:00:26]} 56. Rf7+ {[%clk 00:45:57]} {[%emt
00:00:07]} Kg6 {[%emt 00:00:12]} 57. Qg8+ {[%emt 00:00:09]} Kh5 {[%clk
00:06:50]} {[%emt 00:00:30]} 58. Rh7# {[%clk 00:45:28]} {[%emt 00:00:23]} 1-0

[Event "ONJK DE"]
[Site "Enschede, Netherlands"]
[Date "2022.08.13"]
[Round "12.7"]
[White "Thijssen, Freek (E)"]
[Black "Uitermark, Imre (E)"]
[Result "1/2-1/2"]
[TimeControl "40min + 30sec/move"]
[WhiteElo "1484"]
[BlackElo "1028"]

1. e4 {[%clk 00:40:58]} {[%emt 00:00:02]} e5 {[%clk 00:40:56]} {[%emt
00:00:05]} 2. Nf3 {[%clk 00:41:24]} {[%emt 00:00:04]} Nc6 {[%clk 00:41:20]}
{[%emt 00:00:06]} 3. Bc4 {[%clk 00:41:50]} {[%emt 00:00:04]} Nf6 {[%clk
00:41:40]} {[%emt 00:00:09]} 4. d3 {[%clk 00:42:14]} {[%emt 00:00:07]} d6
{[%clk 00:41:36]} {[%emt 00:00:34]} 5. h3 {[%clk 00:42:36]} {[%emt 00:00:08]}
h6 {[%clk 00:41:58]} {[%emt 00:00:07]} 6. Nc3 {[%clk 00:43:01]} {[%emt
00:00:06]} Bd7 {[%clk 00:39:48]} {[%emt 00:02:39]} 7. Be3 {[%clk 00:41:58]}
{[%emt 00:01:33]} Na5 {[%clk 00:38:49]} {[%emt 00:01:30]} 8. Bb3 {[%clk
00:41:53]} {[%emt 00:00:35]} Be7 {[%clk 00:36:45]} {[%emt 00:02:32]} 9. Qd2
{[%clk 00:41:52]} {[%emt 00:00:32]} Nxb3 {[%clk 00:36:48]} {[%emt 00:00:27]} 10.
axb3 {[%clk 00:42:04]} {[%emt 00:00:19]} O-O {[%clk 00:36:21]} {[%emt
00:00:57]} 11. O-O {[%clk 00:42:23]} {[%emt 00:00:11]} a6 {[%clk 00:36:35]}
{[%emt 00:00:16]} 12. Ne2 {[%clk 00:41:51]} {[%emt 00:01:02]} Re8 {[%clk
00:33:44]} {[%emt 00:03:21]} 13. Ng3 {[%clk 00:41:40]} {[%emt 00:00:41]} Kh7
{[%clk 00:32:40]} {[%emt 00:01:33]} 14. d4 {[%clk 00:40:34]} {[%emt 00:01:36]}
exd4 {[%clk 00:32:16]} {[%emt 00:00:55]} 15. Nxd4 {[%clk 00:40:43]} {[%emt
00:00:20]} d5 {[%clk 00:30:53]} {[%emt 00:01:53]} 16. exd5 {[%clk 00:38:44]}
{[%emt 00:02:29]} Nxd5 {[%clk 00:30:35]} {[%emt 00:00:48]} 17. Ndf5 {[%clk
00:36:34]} {[%emt 00:02:41]} Nxe3 {[%clk 00:29:59]} {[%emt 00:01:05]} 18. Nxe3
{[%clk 00:35:49]} {[%emt 00:01:15]} Bb5 {[%clk 00:30:01]} {[%emt 00:00:29]} 19.
Rfd1 {[%clk 00:35:12]} {[%emt 00:01:07]} Qxd2 {[%clk 00:29:56]} {[%emt
00:00:34]} 20. Rxd2 {[%clk 00:35:32]} {[%emt 00:00:10]} Rad8 {[%clk 00:29:59]}
{[%emt 00:00:28]} 21. Rad1 {[%clk 00:35:10]} {[%emt 00:00:52]} Rxd2 {[%clk
00:30:18]} {[%emt 00:00:10]} 22. Rxd2 {[%clk 00:35:31]} {[%emt 00:00:10]} Rd8
{[%clk 00:30:40]} {[%emt 00:00:08]} 1/2-1/2

[Event "ONJK DE"]
[Site "Enschede, Netherlands"]
[Date "2022.08.13"]
[Round "12.8"]
[White "Brorens, Victor (E)"]
[Black "Koppenens, Oscar (E)"]
[Result "0-1"]
[TimeControl "40min + 30sec/move"]
[WhiteElo "952"]
[BlackElo "1266"]

1. d4 {[%clk 00:40:59]} e6 {[%clk 00:40:57]} {[%emt 00:00:03]} 2. c4 {[%clk
00:41:25]} {[%emt 00:00:05]} Nf6 {[%clk 00:41:24]} {[%emt 00:00:03]} 3. Nc3
{[%clk 00:41:50]} {[%emt 00:00:05]} d5 {[%clk 00:41:50]} {[%emt 00:00:04]} 4.
Bg5 {[%clk 00:42:12]} {[%emt 00:00:07]} Bb4 {[%clk 00:42:15]} {[%emt 00:00:05]}
5. Qb3 {[%clk 00:42:33]} {[%emt 00:00:10]} Bxc3+ {[%clk 00:42:15]} {[%emt
00:00:30]} 6. Qxc3 {[%clk 00:42:55]} {[%emt 00:00:08]} h6 {[%clk 00:42:32]}
{[%emt 00:00:13]} 7. Bh4 {[%clk 00:43:18]} {[%emt 00:00:06]} Nc6 {[%clk
00:41:39]} {[%emt 00:01:23]} 8. Nf3 {[%clk 00:43:41]} {[%emt 00:00:07]} g5
{[%clk 00:41:30]} {[%emt 00:00:39]} 9. Bg3 {[%clk 00:44:04]} {[%emt 00:00:08]}
Ne4 {[%emt 00:00:57]} 10. Qe3 {[%clk 00:43:33]} {[%emt 00:00:46]} Qe7 {[%clk
00:40:09]} {[%emt 00:01:39]} 11. cxd5 {[%clk 00:43:52]} {[%emt 00:00:10]} exd5
{[%clk 00:40:14]} {[%emt 00:00:25]} 12. a3 {[%clk 00:44:13]} {[%emt 00:00:10]}
Be6 {[%clk 00:39:10]} {[%emt 00:01:14]} 13. Ne5 {[%clk 00:44:34]} {[%emt
00:00:28]} Nxe5 {[%clk 00:39:31]} {[%emt 00:00:09]} 14. Bxe5 {[%clk 00:44:46]}
{[%emt 00:00:18]} f6 {[%clk 00:39:55]} {[%emt 00:00:04]} 15. Bg3 {[%clk
00:45:06]} {[%emt 00:00:12]} O-O-O {[%clk 00:40:16]} {[%emt 00:00:09]} 16. Rc1
{[%clk 00:45:23]} {[%emt 00:00:13]} Nxg3 {[%clk 00:40:23]} {[%emt 00:00:23]} 17.
Qxg3 {[%clk 00:45:46]} {[%emt 00:00:07]} Qd6 {[%clk 00:39:35]} {[%emt
00:01:18]} 18. Qxd6 {[%clk 00:46:07]} {[%emt 00:00:09]} Rxd6 {[%clk 00:40:01]}
{[%emt 00:00:04]} 19. e3 {[%clk 00:46:31]} {[%emt 00:00:06]} Re8 {[%clk
00:40:07]} {[%emt 00:00:25]} 20. Bd3 {[%clk 00:46:39]} {[%emt 00:00:22]} f5
{[%clk 00:40:13]} {[%emt 00:00:23]} 21. h4 {[%clk 00:47:02]} {[%emt 00:00:07]}
f4 {[%clk 00:40:23]} {[%emt 00:00:21]} 22. hxg5 {[%clk 00:47:23]} {[%emt
00:00:08]} hxg5 {[%clk 00:40:41]} {[%emt 00:00:12]} 23. Kd2 {[%clk 00:47:38]}
{[%emt 00:00:16]} Rf8 {[%clk 00:40:08]} {[%emt 00:01:03]} 24. Rh6 {[%clk
00:47:53]} {[%emt 00:00:15]} Rb6 {[%clk 00:38:39]} {[%emt 00:01:59]} 25. Rc2
{[%clk 00:48:06]} {[%emt 00:00:17]} fxe3+ {[%clk 00:39:02]} {[%emt 00:00:06]}
26. fxe3 {[%clk 00:48:20]} {[%emt 00:00:17]} Rf2+ {[%clk 00:38:59]} {[%emt
00:00:32]} 27. Kc1 {[%clk 00:48:28]} {[%emt 00:00:22]} Rxc2+ {[%clk 00:38:38]}
{[%emt 00:00:51]} 28. Kxc2 {[%clk 00:48:48]} {[%emt 00:00:11]} Rc6+ {[%clk
00:38:54]} {[%emt 00:00:14]} 29. Kd2 {[%clk 00:49:13]} {[%emt 00:00:05]} Kd8
{[%clk 00:37:07]} {[%emt 00:02:16]} 30. Bb5 {[%clk 00:49:31]} {[%emt 00:00:13]}
Rb6 {[%clk 00:37:05]} {[%emt 00:00:31]} 31. Rh8+ {[%clk 00:49:54]} {[%emt
00:00:07]} Ke7 {[%clk 00:37:28]} {[%emt 00:00:08]} 32. Re8+ {[%clk 00:50:04]}
{[%emt 00:00:19]} Kd6 {[%clk 00:37:45]} {[%emt 00:00:14]} 33. Bf1 {[%clk
00:50:14]} {[%emt 00:00:21]} Rxb2+ {[%clk 00:38:07]} {[%emt 00:00:08]} 34. Kc3
{[%clk 00:50:31]} {[%emt 00:00:12]} Rf2 {[%clk 00:38:20]} {[%emt 00:00:16]} 35.
Bd3 {[%clk 00:50:35]} {[%emt 00:00:26]} Rxg2 {[%clk 00:38:37]} {[%emt
00:00:14]} 36. e4 {[%clk 00:50:59]} {[%emt 00:00:07]} dxe4 {[%clk 00:38:18]}
{[%emt 00:00:48]} 37. Bxe4 {[%clk 00:51:20]} {[%emt 00:00:09]} Rg3+ {[%clk
00:38:42]} {[%emt 00:00:07]} 38. Kb4 {[%clk 00:51:42]} {[%emt 00:00:08]} Rg1
{[%clk 00:38:45]} {[%emt 00:00:25]} 39. Ra8 {[%clk 00:52:05]} {[%emt 00:00:09]}
a6 {[%clk 00:38:59]} {[%emt 00:00:16]} 40. Ra7 {[%clk 00:52:26]} {[%emt
00:00:09]} Bd5 {[%clk 00:39:20]} {[%emt 00:00:08]} 41. Bc2 {[%clk 00:52:42]}
{[%emt 00:00:14]} g4 {[%clk 00:39:31]} {[%emt 00:00:20]} 42. Ra8 {[%clk
00:53:06]} {[%emt 00:00:06]} g3 {[%clk 00:39:28]} {[%emt 00:00:33]} 43. Rd8+
{[%clk 00:53:24]} {[%emt 00:00:10]} Kc6 {[%clk 00:39:26]} {[%emt 00:00:33]} 44.
Bf5 {[%clk 00:53:40]} {[%emt 00:00:13]} g2 {[%clk 00:39:42]} {[%emt 00:00:14]}
45. Bh3 {[%clk 00:53:59]} {[%emt 00:00:12]} Rb1+ {[%clk 00:40:08]} {[%emt
00:00:04]} 0-1

[Event "ONJK DE"]
[Site "Enschede, Netherlands"]
[Date "2022.08.13"]
[Round "13.1"]
[White "Dijkhuijsen, Thomas"]
[Black "Groenewoud, Joel"]
[Result "0-1"]
[TimeControl "40min + 30sec/move"]
[WhiteElo "1306"]
[BlackElo "1497"]

1. e4 {[%clk 00:40:57]} {[%emt 00:00:02]} c6 {[%clk 00:37:31]} {[%emt
00:03:29]} 2. d4 {[%clk 00:41:23]} {[%emt 00:00:04]} d5 {[%clk 00:37:53]}
{[%emt 00:00:08]} 3. Nc3 {[%clk 00:41:51]} {[%emt 00:00:02]} dxe4 {[%clk
00:38:18]} {[%emt 00:00:05]} 4. Nxe4 {[%clk 00:42:14]} {[%emt 00:00:07]} Nf6
{[%clk 00:38:39]} {[%emt 00:00:10]} 5. Nxf6+ {[%clk 00:42:41]} {[%emt
00:00:03]} exf6 {[%clk 00:39:01]} {[%emt 00:00:08]} 6. Nf3 {[%clk 00:43:08]}
{[%emt 00:00:02]} Bd6 {[%clk 00:39:20]} {[%emt 00:00:12]} 7. Bd3 {[%clk
00:43:30]} {[%emt 00:00:07]} O-O {[%clk 00:39:42]} {[%emt 00:00:08]} 8. O-O
{[%clk 00:43:56]} {[%emt 00:00:04]} Re8 {[%clk 00:40:05]} {[%emt 00:00:07]} 9.
Re1 {[%clk 00:43:44]} {[%emt 00:00:41]} Nd7 {[%clk 00:40:12]} {[%emt 00:00:24]}
10. c4 {[%clk 00:43:40]} {[%emt 00:00:34]} Nf8 {[%clk 00:40:14]} {[%emt
00:00:28]} 11. Be3 {[%clk 00:42:33]} {[%emt 00:01:37]} Bg4 {[%clk 00:40:29]}
{[%emt 00:00:16]} 12. h3 {[%clk 00:42:19]} {[%emt 00:00:43]} Bh5 {[%clk
00:40:53]} {[%emt 00:00:06]} 13. Be2 {[%clk 00:42:23]} {[%emt 00:00:26]} Bc7
{[%clk 00:40:58]} {[%emt 00:00:25]} 14. Nd2 {[%clk 00:42:08]} {[%emt 00:00:45]}
Bg6 {[%clk 00:40:49]} {[%emt 00:00:39]} 15. Nb3 {[%clk 00:41:41]} {[%emt
00:00:55]} Qd6 {[%clk 00:41:05]} {[%emt 00:00:16]} 16. Bf3 {[%clk 00:39:42]}
{[%emt 00:02:29]} Ne6 {[%clk 00:39:41]} {[%emt 00:01:54]} 17. g3 {[%clk
00:38:36]} {[%emt 00:01:36]} Rad8 {[%clk 00:39:35]} {[%emt 00:00:36]} 18. Rc1
{[%clk 00:38:17]} {[%emt 00:00:47]} f5 {[%clk 00:39:25]} {[%emt 00:00:41]} 19.
d5 {[%clk 00:36:00]} {[%emt 00:02:48]} f4 {[%clk 00:27:03]} {[%emt 00:12:52]}
20. dxe6 {[%clk 00:31:53]} {[%emt 00:04:35]} fxe3 {[%clk 00:24:59]} {[%emt
00:02:35]} 21. Qxd6 {[%clk 00:29:24]} {[%emt 00:02:59]} exf2+ {[%clk 00:23:13]}
{[%emt 00:02:16]} 22. Kxf2 {[%clk 00:29:43]} {[%emt 00:00:12]} Bxd6 {[%clk
00:22:53]} {[%emt 00:00:50]} 23. exf7+ {[%clk 00:25:30]} {[%emt 00:04:42]} Kxf7
{[%clk 00:22:39]} {[%emt 00:00:44]} 24. Na5 {[%clk 00:23:15]} {[%emt 00:02:46]}
Bc5+ {[%clk 00:21:52]} {[%emt 00:01:17]} 25. Kf1 {[%clk 00:22:51]} {[%emt
00:00:54]} Rxe1+ {[%clk 00:19:23]} {[%emt 00:02:59]} 26. Rxe1 {[%clk 00:22:44]}
{[%emt 00:00:37]} Bb4 {[%clk 00:15:14]} {[%emt 00:04:39]} 27. Nxb7 {[%clk
00:21:04]} {[%emt 00:02:09]} Rb8 {[%clk 00:14:43]} {[%emt 00:01:02]} 28. Bxc6
{[%clk 00:20:49]} {[%emt 00:00:45]} Bxe1 {[%clk 00:14:13]} {[%emt 00:01:00]} 29.
Kxe1 {[%clk 00:21:08]} {[%emt 00:00:09]} Ke6 {[%clk 00:13:22]} {[%emt
00:01:22]} 30. Bd5+ {[%clk 00:20:53]} {[%emt 00:00:45]} Kd7 {[%clk 00:12:32]}
{[%emt 00:01:21]} 31. Nc5+ {[%clk 00:19:11]} {[%emt 00:02:12]} Kd6 {[%clk
00:12:01]} {[%emt 00:01:01]} 32. Nb7+ {[%clk 00:18:43]} {[%emt 00:00:57]} Kc7
{[%clk 00:12:08]} {[%emt 00:00:23]} 33. Kd2 {[%clk 00:18:29]} {[%emt 00:00:44]}
Rxb7 {[%clk 00:10:31]} {[%emt 00:02:09]} 34. Bxb7 {[%clk 00:18:52]} {[%emt
00:00:06]} Kxb7 {[%clk 00:10:51]} {[%emt 00:00:10]} 35. Kc3 {[%clk 00:17:50]}
{[%emt 00:01:32]} Bf5 {[%clk 00:10:35]} {[%emt 00:00:46]} 36. h4 {[%clk
00:18:07]} {[%emt 00:00:12]} Be6 {[%clk 00:10:52]} {[%emt 00:00:13]} 37. Kd4
{[%clk 00:18:10]} {[%emt 00:00:27]} Kc6 {[%clk 00:09:52]} {[%emt 00:01:31]} 38.
b4 {[%clk 00:17:24]} {[%emt 00:01:16]} Kb6 {[%clk 00:07:36]} {[%emt 00:02:46]}
39. a3 {[%clk 00:15:27]} {[%emt 00:02:27]} a6 {[%clk 00:06:28]} {[%emt
00:01:39]} 40. a4 {[%clk 00:14:35]} {[%emt 00:01:21]} Bd7 {[%clk 00:04:40]}
{[%emt 00:02:17]} 41. a5+ {[%clk 00:12:55]} {[%emt 00:02:10]} Kc6 {[%clk
00:04:25]} {[%emt 00:00:46]} 42. Kc3 {[%clk 00:09:15]} {[%emt 00:04:10]} Bg4
{[%clk 00:04:12]} {[%emt 00:00:43]} 43. Kd4 {[%clk 00:08:13]} {[%emt 00:01:32]}
Be2 {[%clk 00:04:13]} {[%emt 00:00:28]} 44. Kc3 {[%clk 00:08:07]} {[%emt
00:00:37]} Kd7 {[%clk 00:03:19]} {[%emt 00:01:24]} 45. Kd4 {[%clk 00:05:30]}
{[%emt 00:03:07]} Kd6 {[%clk 00:03:30]} {[%emt 00:00:19]} 46. b5 {[%clk
00:04:26]} {[%emt 00:01:34]} axb5 {[%clk 00:02:24]} {[%emt 00:01:36]} 47. cxb5
{[%clk 00:04:43]} {[%emt 00:00:13]} Bxb5 {[%clk 00:02:25]} {[%emt 00:00:29]} 48.
Ke4 {[%clk 00:05:04]} {[%emt 00:00:09]} Ke6 {[%clk 00:01:37]} {[%emt 00:01:18]}
49. Kf4 {[%clk 00:05:09]} {[%emt 00:00:24]} Kf6 {[%clk 00:01:16]} {[%emt
00:00:51]} 50. h5 {[%clk 00:04:13]} {[%emt 00:01:26]} h6 {[%clk 00:00:53]}
{[%emt 00:00:54]} 51. Kg4 {[%clk 00:02:37]} {[%emt 00:02:05]} Ke5 {[%clk
00:00:54]} {[%emt 00:00:30]} 52. Kh3 {[%clk 00:01:48]} {[%emt 00:01:17]} Kf5
{[%clk 00:01:13]} {[%emt 00:00:13]} 53. g4+ {[%clk 00:01:34]} {[%emt 00:00:44]}
Kf4 {[%clk 00:01:18]} {[%emt 00:00:24]} 54. Kh4 {[%clk 00:01:42]} {[%emt
00:00:23]} Bf1 {[%clk 00:01:25]} {[%emt 00:00:22]} 55. a6 {[%clk 00:01:52]}
{[%emt 00:00:20]} Bxa6 {[%clk 00:01:46]} {[%emt 00:00:09]} 56. g5 {[%clk
00:01:50]} {[%emt 00:00:31]} hxg5 {[%clk 00:01:59]} {[%emt 00:00:17]} 57. Kh3
{[%clk 00:02:07]} {[%emt 00:00:12]} Kf3 {[%clk 00:01:58]} {[%emt 00:00:32]} 58.
Kh2 {[%clk 00:02:11]} {[%emt 00:00:26]} g4 {[%clk 00:02:08]} {[%emt 00:00:20]}
59. Kg1 {[%clk 00:01:25]} {[%emt 00:01:16]} g3 {[%clk 00:02:22]} {[%emt
00:00:17]} 60. h6 {[%clk 00:01:23]} {[%emt 00:00:31]} gxh6 {[%clk 00:02:22]}
{[%emt 00:00:31]} 61. Kh1 {[%clk 00:01:47]} {[%emt 00:00:06]} g2+ {[%clk
00:02:18]} {[%emt 00:00:34]} 62. Kg1 {[%clk 00:01:58]} {[%emt 00:00:18]} Bf1
{[%clk 00:02:20]} {[%emt 00:00:29]} 63. Kh2 {[%clk 00:02:12]} {[%emt 00:00:16]}
Kf2 {[%clk 00:02:35]} {[%emt 00:00:15]} 64. Kh3 {[%clk 00:02:26]} {[%emt
00:00:14]} g1=Q+ {[%clk 00:02:41]} {[%emt 00:00:25]} 65. Kh4 {[%clk 00:02:50]}
{[%emt 00:00:06]} Qg5# {[%clk 00:03:03]} {[%emt 00:00:09]} 0-1